lending/lending_fUSD_20240926
["ID","MTS","AMOUNT","RATE_DAILY","PERIOD"]
[339203464,1727319043412,-1000.0,0.00012835,2]
[339203465,1727319043421,-1000.0,0.00012835,2]
[339203466,1727319043431,-1000.0,0.00012835,2]
[339203467,1727319043440,-1000.0,0.00012835,2]
[339203468,1727319043449,-1000.0,0.00012835,2]
[339203469,1727319043459,-1000.0,0.00012835,2]
[339203470,1727319043468,-1000.0,0.00012835,2]
[339203471,1727319043478,-1000.0,0.00012835,2]
[339203472,1727319043488,-156.68170487,0.00012835,2]
[339203473,1727319043500,-557.16111004,0.00012835,2]
[339203474,1727319043511,-286.15718509,0.00012835,2]
[339203475,1727319043520,-17.30095127,0.00012835,2]
[339203476,1727319043531,-259.4880914,0.00012835,2]
[339203477,1727319043543,-319.65745733,0.00012835,2]
[339203478,1727319043552,-302.2358003,0.0001285,2]
[339203479,1727319043562,-288.99445435,0.0001285,2]
[339203480,1727319043572,-349.42260879,0.00012868,2]
[339203481,1727319043582,-465.07860604,0.00012873,2]
[339203482,1727319043592,-321.14435909,0.00012873,2]
[339203483,1727319043601,-249.34,0.00012889,2]
[339203484,1727319043611,-249.34,0.0001289,2]
[339203485,1727319043620,-249.34,0.0001289,2]
[339203486,1727319043630,-762.03,0.00012899,2]
[339203487,1727319043640,-231.85858869,0.00012899,2]
[339203488,1727319043651,-2276.1399725,0.00012899,2]
[339203489,1727319043660,-6565.41815293,0.00012899,2]
[339203498,1727319046195,-189.45,0.00011983,2]
[339203499,1727319046204,-626.24,0.00012329,2]
[339203500,1727319046214,-1127.73725065,0.00012641,2]
[339203501,1727319046223,-4093.27780447,0.00012899,2]
[339203502,1727319046233,-230.24132656,0.00012899,2]
[339203503,1727319046243,-500.0,0.000129,2]
[339203504,1727319046252,-197375.61830834,0.000129,2]
[339203505,1727319046262,-247.85790654,0.000129,2]
[339203506,1727319046271,-53684.31917042,0.000129,2]
[339203507,1727319046283,-2138.00000118,0.000129,2]
[339203508,1727319046295,-1135.31998,0.000129,2]
[339203509,1727319046476,-7664.894129,0.000129,2]
[339203510,1727319046488,-655.925,0.000129,2]
[339203511,1727319046499,-250.10479714,0.000129,2]
[339203512,1727319046523,-5008.17589993,0.000129,2]
[339203513,1727319046534,-282.58601024,0.000129,2]
[339203514,1727319046545,-12181.45042317,0.000129,2]
[339203515,1727319046579,-12599.9999996,0.000129,2]
[339203519,1727319122327,600.0,9.068e-05,2]
[339203520,1727319123619,500.0,9.068e-05,2]
[339203521,1727319123890,600.0,0.00010438,2]
[339203522,1727319125570,500.0,0.00010438,2]
[339203523,1727319151765,174.13,9.283e-05,2]
[339203524,1727319209279,2000.0,0.00021,60]
[339203525,1727319228681,3000.0,0.00021,60]
[339203527,1727319242125,782.72,0.000139,31]
[339203528,1727319242153,782.72,0.000139,31]
[339203529,1727319242180,782.72,0.000139,31]
[339203530,1727319242212,782.72,0.000139,31]
[339203531,1727319242239,782.72,0.000139,31]
[339203532,1727319242457,782.72,0.000139,31]
[339203533,1727319242492,782.72,0.000139,31]
[339203534,1727319242546,782.72,0.000139,31]
[339203535,1727319242582,782.72,0.000139,31]
[339203536,1727319242610,782.72,0.000139,31]
[339203537,1727319242669,782.72,0.000139,31]
[339203538,1727319242720,782.72,0.000139,31]
[339203539,1727319242776,782.72,0.000139,31]
[339203540,1727319242841,782.72,0.000139,31]
[339203541,1727319242904,782.72,0.000139,31]
[339203542,1727319243072,782.72,0.000139,31]
[339203544,1727319469932,1825.96,9.554e-05,2]
[339203545,1727319509458,285.83,0.00010959,2]
[339203546,1727319714501,156.7,0.00011,2]
[339203547,1727319719080,212.60171597,0.00021,60]
[339203548,1727319734074,160.0,0.00011,2]
[339203549,1727319759254,213.0,0.00021,60]
[339203550,1727319780632,174.13,9.123e-05,2]
[339203551,1727319854224,657.55,0.000139,31]
[339203552,1727319854289,657.55,0.000139,31]
[339203553,1727319854344,657.55,0.000139,31]
[339203554,1727319854405,657.55,0.000139,31]
[339203555,1727319854477,657.55,0.000139,31]
[339203556,1727319854531,657.55,0.000139,31]
[339203557,1727319854585,657.55,0.000139,31]
[339203558,1727319854649,657.55,0.000139,31]
[339203559,1727319854710,657.55,0.000139,31]
[339203560,1727319854760,657.55,0.000139,31]
[339203561,1727319854826,657.55,0.000139,31]
[339203562,1727319854885,657.55,0.000139,31]
[339203563,1727319854936,657.55,0.000139,31]
[339203564,1727319855001,657.55,0.000139,31]
[339203565,1727319855071,657.55,0.000139,31]
[339203566,1727319855136,657.55,0.000139,31]
[339203567,1727319905153,332.58,0.00010959,2]
[339203568,1727319917397,755.89,0.00010959,2]
[339203573,1727319986213,1782.25,9.405e-05,2]
[339203574,1727319993387,1050.0,0.00011,2]
[339203575,1727320058329,255.5,0.00010959,2]
[339203577,1727320124332,-212.80406099,0.00011224,2]
[339203578,1727320124353,-243.5507835,0.00011301,2]
[339203579,1727320124374,-250.0,0.00011302,2]
[339203580,1727320124395,-489.18,0.00011324,2]
[339203581,1727320124415,-500.0,0.00011328,2]
[339203582,1727320124436,-44048.54105659,0.00011328,2]
[339203583,1727320124456,-274.89,0.00011345,2]
[339203584,1727320124477,-448.97,0.0001138,2]
[339203585,1727320124499,-250.0,0.00011383,2]
[339203586,1727320124519,-150.0,0.00011383,2]
[339203587,1727320124545,-18758.04,0.00011384,2]
[339203588,1727320124565,-165.80340481,0.00011389,2]
[339203589,1727320124586,-250.0,0.00011405,2]
[339203590,1727320124608,-800.0,0.00011406,2]
[339203591,1727320124631,-223.27,0.00011409,2]
[339203592,1727320124651,-991.06,0.00011409,2]
[339203593,1727320124672,-499.99,0.00011409,2]
[339203594,1727320124692,-200.0,0.00011551,2]
[339203595,1727320124712,-176.63,0.00011596,2]
[339203596,1727320124735,-1782.25,0.00011669,2]
[339203597,1727320124757,-150.0,0.00011688,2]
[339203598,1727320124778,-600.0,0.00011808,2]
[339203599,1727320124798,-500.0,0.00011808,2]
[339203600,1727320124824,-153.97,0.00012032,2]
[339203601,1727320124851,-153.97,0.00012039,2]
[339203602,1727320124872,-153.97,0.00012045,2]
[339203603,1727320124892,-153.97,0.00012052,2]
[339203604,1727320124912,-153.97,0.00012059,2]
[339203605,1727320124932,-153.97,0.00012065,2]
[339203606,1727320124952,-153.97,0.00012072,2]
[339203607,1727320125202,-212.592427,0.00012078,2]
[339203608,1727320125223,-153.97,0.00012079,2]
[339203609,1727320125243,-157.85,0.0001208,2]
[339203610,1727320125263,-153.97,0.00012085,2]
[339203611,1727320125283,-153.97,0.00012092,2]
[339203612,1727320125303,-157.85,0.00012135,2]
[339203613,1727320125323,-157.85,0.0001219,2]
[339203614,1727320125343,-157.85,0.00012245,2]
[339203615,1727320125363,-1250.0,0.000123,2]
[339203616,1727320125384,-255.0,0.00012441,2]
[339203617,1727320125404,-180.0,0.00012441,2]
[339203618,1727320125424,-167.63,0.00012445,2]
[339203619,1727320125443,-1005.3259401,0.00012642,2]
[339203620,1727320125462,-1147.0,0.00012656,2]
[339203621,1727320125482,-13614.371,0.00012656,2]
[339203622,1727320125502,-1081.0,0.00012656,2]
[339203623,1727320125522,-650.633,0.00012725,2]
[339203624,1727320125544,-166.606,0.00012725,2]
[339203625,1727320125564,-349.4226088,0.00012738,2]
[339203626,1727320125588,-500.0,0.00012797,2]
[339203627,1727320125609,-910.4719,0.00012799,2]
[339203628,1727320125630,-3215.6699,0.00012799,2]
[339203629,1727320125649,-1719.068,0.00012799,2]
[339203630,1727320125669,-3854.9145,0.000128,2]
[339203631,1727320125688,-3062.215,0.000128,2]
[339203632,1727320125707,-168.44791414,0.000128,2]
[339203633,1727320125726,-1769.542221,0.000128,2]
[339203634,1727320125746,-206.54651259,0.000128,2]
[339203635,1727320125765,-2000.54523883,0.000128,2]
[339203636,1727320125785,-800.0,0.00012832,2]
[339203637,1727320125806,-474.48,0.00012834,2]
[339203638,1727320125826,-1561.871,0.00012834,2]
[339203639,1727320125845,-558.0,0.00012834,2]
[339203640,1727320125866,-150.0,0.00012834,2]
[339203641,1727320125887,-810.0,0.00012834,2]
[339203642,1727320125917,-150.0,0.00012834,2]
[339203643,1727320125936,-5869.0,0.00012834,2]
[339203644,1727320125959,-933.0,0.00012834,2]
[339203645,1727320125982,-554.0,0.00012834,2]
[339203646,1727320126002,-1903.0,0.00012834,2]
[339203647,1727320126022,-3354.111,0.00012834,2]
[339203648,1727320126047,-807.0,0.00012834,2]
[339203649,1727320126069,-1914.159,0.00012834,2]
[339203650,1727320126092,-223.27,0.00012835,2]
[339203651,1727320126112,-14323.54062326,0.0001289,2]
[339203652,1727320126132,-159.83,0.0001289,2]
[339203653,1727320126151,-292.32664863,0.0001289,2]
[339203654,1727320126171,-150.60536653,0.00012899,2]
[339203655,1727320126190,-2644.2453994,0.00012899,2]
[339203656,1727320126211,-157.81057349,0.00012899,2]
[339203657,1727320126232,-500.0,0.00012899,2]
[339203658,1727320126252,-500.0,0.00012899,2]
[339203659,1727320126272,-500.0,0.00012899,2]
[339203660,1727320126292,-205.72813233,0.00012899,2]
[339203661,1727320126312,-730.28,0.00012899,2]
[339203662,1727320126331,-2008.59456738,0.00012899,2]
[339203663,1727320126351,-3008.8077679,0.00012899,2]
[339203664,1727320126370,-568.0535552,0.00012899,2]
[339203665,1727320126392,-14686.4896383,0.00012899,2]
[339203666,1727320126412,-743.0,0.000129,2]
[339203667,1727320126434,-177649.80628605,0.000129,2]
[339203668,1727320126457,-2164366.83642606,0.000129,2]
[339203669,1727320126478,-5000.0,0.000129,2]
[339203670,1727320126498,-2001.8,0.000129,2]
[339203671,1727320126518,-170.06546927,0.000129,2]
[339203672,1727320126541,-170.06546927,0.000129,2]
[339203673,1727320126562,-170.06546927,0.000129,2]
[339203674,1727320126583,-170.56,0.000129,2]
[339203675,1727320126603,-151.25263935,0.000129,2]
[339203676,1727320126623,-151.25263935,0.000129,2]
[339203677,1727320126644,-151.25263935,0.000129,2]
[339203678,1727320126665,-151.25263935,0.000129,2]
[339203679,1727320126686,-151.25263935,0.000129,2]
[339203680,1727320126706,-151.25263935,0.000129,2]
[339203681,1727320126727,-151.25263935,0.000129,2]
[339203682,1727320126748,-151.25263935,0.000129,2]
[339203683,1727320126770,-151.25263935,0.000129,2]
[339203684,1727320126790,-151.25263935,0.000129,2]
[339203685,1727320126810,-151.25263935,0.000129,2]
[339203686,1727320126831,-151.25263935,0.000129,2]
[339203687,1727320126851,-151.25263935,0.000129,2]
[339203688,1727320126870,-151.25263935,0.000129,2]
[339203689,1727320126891,-151.25263935,0.000129,2]
[339203690,1727320126911,-151.25263935,0.000129,2]
[339203691,1727320126931,-151.25263935,0.000129,2]
[339203692,1727320126950,-151.75,0.000129,2]
[339203693,1727320126969,-1000.0,0.000129,2]
[339203694,1727320126990,-1000.0,0.000129,2]
[339203695,1727320127008,-1000.0,0.000129,2]
[339203696,1727320127028,-1000.0,0.000129,2]
[339203697,1727320127047,-1000.0,0.000129,2]
[339203698,1727320127066,-1000.0,0.000129,2]
[339203699,1727320127086,-1000.0,0.000129,2]
[339203700,1727320127105,-1000.0,0.000129,2]
[339203701,1727320127124,-1000.0,0.000129,2]
[339203702,1727320127144,-1000.0,0.000129,2]
[339203703,1727320127163,-1000.0,0.000129,2]
[339203704,1727320127182,-1000.0,0.000129,2]
[339203705,1727320127201,-1000.0,0.000129,2]
[339203706,1727320127220,-1000.0,0.000129,2]
[339203707,1727320127240,-1000.0,0.000129,2]
[339203708,1727320127259,-151.0,0.000129,2]
[339203709,1727320127278,-151.0,0.000129,2]
[339203710,1727320127297,-151.0,0.000129,2]
[339203711,1727320127316,-151.0,0.000129,2]
[339203712,1727320127335,-151.0,0.000129,2]
[339203713,1727320127355,-151.0,0.000129,2]
[339203714,1727320127374,-151.0,0.000129,2]
[339203715,1727320127393,-151.0,0.000129,2]
[339203716,1727320127414,-175.73,0.000129,2]
[339203717,1727320127436,-175.60620249,0.000129,2]
[339203718,1727320127456,-175.60620249,0.000129,2]
[339203719,1727320127477,-175.60620249,0.000129,2]
[339203720,1727320127504,-176.1,0.000129,2]
[339203721,1727320127526,-233.1,0.000129,2]
[339203722,1727320127548,-155.3211306,0.000129,2]
[339203723,1727320127569,-155.3211306,0.000129,2]
[339203724,1727320127590,-155.3211306,0.000129,2]
[339203725,1727320127610,-155.3211306,0.000129,2]
[339203726,1727320127631,-155.3211306,0.000129,2]
[339203727,1727320127652,-155.82,0.000129,2]
[339203728,1727320127672,-151.0,0.000129,2]
[339203729,1727320127691,-151.0,0.000129,2]
[339203730,1727320127710,-151.0,0.000129,2]
[339203731,1727320127730,-151.0,0.000129,2]
[339203732,1727320127750,-151.283716,0.000129,2]
[339203733,1727320127770,-1000.0,0.000129,2]
[339203734,1727320127789,-1000.0,0.000129,2]
[339203735,1727320127809,-1000.0,0.000129,2]
[339203736,1727320127829,-1000.0,0.000129,2]
[339203737,1727320127849,-1000.0,0.000129,2]
[339203738,1727320127868,-1000.0,0.000129,2]
[339203739,1727320127888,-1000.0,0.000129,2]
[339203740,1727320127908,-1000.0,0.000129,2]
[339203741,1727320127928,-1000.0,0.000129,2]
[339203742,1727320127949,-1000.0,0.000129,2]
[339203743,1727320127970,-1000.0,0.000129,2]
[339203744,1727320127991,-1000.0,0.000129,2]
[339203745,1727320128012,-1000.0,0.000129,2]
[339203746,1727320128032,-340.0,0.000129,2]
[339203747,1727320128052,-156.321279,0.000129,2]
[339203748,1727320128072,-151.0,0.000129,2]
[339203749,1727320128093,-151.0,0.000129,2]
[339203750,1727320128113,-151.0,0.000129,2]
[339203751,1727320128133,-151.0,0.000129,2]
[339203752,1727320128153,-151.0,0.000129,2]
[339203753,1727320128173,-151.0,0.000129,2]
[339203754,1727320128193,-151.0,0.000129,2]
[339203755,1727320128214,-151.0,0.000129,2]
[339203756,1727320128235,-151.0,0.000129,2]
[339203757,1727320128264,-151.0,0.000129,2]
[339203758,1727320128284,-151.0,0.000129,2]
[339203759,1727320128304,-151.0,0.000129,2]
[339203760,1727320128324,-151.0,0.000129,2]
[339203761,1727320128345,-151.0,0.000129,2]
[339203762,1727320128366,-151.0,0.000129,2]
[339203763,1727320128386,-151.0,0.000129,2]
[339203764,1727320128407,-151.0,0.000129,2]
[339203765,1727320128428,-151.0,0.000129,2]
[339203766,1727320128449,-151.0,0.000129,2]
[339203767,1727320128469,-151.0,0.000129,2]
[339203768,1727320128493,-151.0,0.000129,2]
[339203769,1727320128514,-299.269541,0.000129,2]
[339203770,1727320128535,-170.121973,0.000129,2]
[339203771,1727320128558,-170.121973,0.000129,2]
[339203772,1727320128580,-170.121973,0.000129,2]
[339203773,1727320128601,-170.121973,0.000129,2]
[339203774,1727320128622,-151.0,0.000129,2]
[339203775,1727320128643,-151.0,0.000129,2]
[339203776,1727320128664,-161.254221,0.000129,2]
[339203777,1727320128686,-161.254221,0.000129,2]
[339203778,1727320128707,-161.254221,0.000129,2]
[339203779,1727320128727,-161.254221,0.000129,2]
[339203780,1727320128759,-151.316135,0.000129,2]
[339203781,1727320128780,-151.0,0.000129,2]
[339203782,1727320128800,-151.0,0.000129,2]
[339203783,1727320128821,-151.0,0.000129,2]
[339203784,1727320129018,-151.0,0.000129,2]
[339203785,1727320129040,-151.0,0.000129,2]
[339203786,1727320129063,-151.0,0.000129,2]
[339203787,1727320129085,-151.0,0.000129,2]
[339203788,1727320129106,-151.0,0.000129,2]
[339203789,1727320129127,-200.28509144,0.000129,2]
[339203790,1727320129147,-626.0,0.000129,2]
[339203791,1727320129168,-171.469192,0.000129,2]
[339203792,1727320129191,-171.469192,0.000129,2]
[339203793,1727320129212,-171.469192,0.000129,2]
[339203794,1727320129233,-171.469192,0.000129,2]
[339203795,1727320129253,-151.0,0.000129,2]
[339203796,1727320129274,-151.0,0.000129,2]
[339203797,1727320129295,-151.0,0.000129,2]
[339203798,1727320129316,-151.0,0.000129,2]
[339203799,1727320129342,-508.675475,0.000129,2]
[339203800,1727320129363,-508.675475,0.000129,2]
[339203801,1727320129384,-508.675475,0.000129,2]
[339203802,1727320129405,-508.675475,0.000129,2]
[339203803,1727320129425,-151.0,0.000129,2]
[339203804,1727320129446,-152.088566,0.000129,2]
[339203805,1727320129468,-151.0,0.000129,2]
[339203806,1727320129489,-151.0,0.000129,2]
[339203807,1727320129509,-151.0,0.000129,2]
[339203808,1727320129530,-151.0,0.000129,2]
[339203809,1727320129554,-151.0,0.000129,2]
[339203810,1727320129574,-151.0,0.000129,2]
[339203811,1727320129595,-155.612244,0.000129,2]
[339203812,1727320129616,-155.612244,0.000129,2]
[339203813,1727320129637,-151.0,0.000129,2]
[339203814,1727320129658,-188.321329,0.000129,2]
[339203815,1727320129679,-151.0,0.000129,2]
[339203816,1727320129699,-188.321329,0.000129,2]
[339203817,1727320129719,-151.0,0.000129,2]
[339203818,1727320129739,-155.612244,0.000129,2]
[339203819,1727320129760,-155.612244,0.000129,2]
[339203820,1727320129780,-151.25184,0.000129,2]
[339203821,1727320129800,-188.321329,0.000129,2]
[339203822,1727320129820,-188.321329,0.000129,2]
[339203823,1727320129840,-151.0,0.000129,2]
[339203824,1727320129860,-151.0,0.000129,2]
[339203825,1727320129880,-151.0,0.000129,2]
[339203826,1727320129901,-151.0,0.000129,2]
[339203827,1727320129921,-151.0,0.000129,2]
[339203828,1727320129941,-151.0,0.000129,2]
[339203829,1727320129962,-462.084521,0.000129,2]
[339203830,1727320129982,-462.084521,0.000129,2]
[339203831,1727320130003,-462.084521,0.000129,2]
[339203832,1727320130024,-462.084521,0.000129,2]
[339203833,1727320130047,-194.709854,0.000129,2]
[339203834,1727320130071,-194.709854,0.000129,2]
[339203835,1727320130093,-194.709854,0.000129,2]
[339203836,1727320130116,-151.0,0.000129,2]
[339203837,1727320130140,-194.709854,0.000129,2]
[339203838,1727320130163,-151.0,0.000129,2]
[339203839,1727320130185,-151.0,0.000129,2]
[339203840,1727320130205,-151.0,0.000129,2]
[339203841,1727320130226,-151.0,0.000129,2]
[339203842,1727320130247,-151.0,0.000129,2]
[339203843,1727320130268,-151.0,0.000129,2]
[339203844,1727320130290,-151.0,0.000129,2]
[339203845,1727320130310,-151.0,0.000129,2]
[339203846,1727320130331,-151.0,0.000129,2]
[339203847,1727320130352,-348.852032,0.000129,2]
[339203848,1727320130372,-348.852032,0.000129,2]
[339203849,1727320130393,-348.852032,0.000129,2]
[339203850,1727320130413,-348.852032,0.000129,2]
[339203851,1727320130432,-151.0,0.000129,2]
[339203852,1727320130453,-151.0,0.000129,2]
[339203853,1727320130473,-151.0,0.000129,2]
[339203854,1727320130494,-151.0,0.000129,2]
[339203855,1727320130514,-151.0,0.000129,2]
[339203856,1727320130534,-151.0,0.000129,2]
[339203857,1727320130556,-151.0,0.000129,2]
[339203858,1727320130576,-240.661754,0.000129,2]
[339203859,1727320130597,-240.661754,0.000129,2]
[339203860,1727320130616,-240.661754,0.000129,2]
[339203861,1727320130636,-151.0,0.000129,2]
[339203862,1727320130659,-281.944541,0.000129,2]
[339203863,1727320130680,-240.661754,0.000129,2]
[339203864,1727320130703,-240.661754,0.000129,2]
[339203865,1727320130723,-240.661754,0.000129,2]
[339203866,1727320130744,-193.220083,0.000129,2]
[339203867,1727320130764,-193.220083,0.000129,2]
[339203868,1727320130785,-193.220083,0.000129,2]
[339203869,1727320130805,-168.040427,0.000129,2]
[339203870,1727320130826,-168.040427,0.000129,2]
[339203871,1727320130846,-168.040427,0.000129,2]
[339203872,1727320130866,-153.817073,0.000129,2]
[339203873,1727320130886,-193.220083,0.000129,2]
[339203874,1727320130906,-193.220083,0.000129,2]
[339203875,1727320130926,-193.220083,0.000129,2]
[339203876,1727320130946,-168.040427,0.000129,2]
[339203877,1727320130965,-168.040427,0.000129,2]
[339203878,1727320130986,-168.040427,0.000129,2]
[339203879,1727320131006,-264.795364,0.000129,2]
[339203880,1727320131026,-264.795364,0.000129,2]
[339203881,1727320131046,-264.795364,0.000129,2]
[339203882,1727320131066,-264.795364,0.000129,2]
[339203883,1727320131087,-264.795364,0.000129,2]
[339203884,1727320131108,-264.795364,0.000129,2]
[339203885,1727320131131,-618.166221,0.000129,2]
[339203886,1727320131152,-618.166221,0.000129,2]
[339203887,1727320131176,-618.166221,0.000129,2]
[339203888,1727320131198,-151.0,0.000129,2]
[339203889,1727320131220,-151.0,0.000129,2]
[339203890,1727320131244,-151.0,0.000129,2]
[339203891,1727320131264,-618.166221,0.000129,2]
[339203892,1727320131286,-152.39873,0.000129,2]
[339203893,1727320131306,-618.166221,0.000129,2]
[339203894,1727320131328,-618.166221,0.000129,2]
[339203895,1727320131350,-151.0,0.000129,2]
[339203896,1727320131372,-151.0,0.000129,2]
[339203897,1727320131394,-151.0,0.000129,2]
[339203898,1727320131414,-151.0,0.000129,2]
[339203899,1727320131435,-266.457235,0.000129,2]
[339203900,1727320131455,-266.457235,0.000129,2]
[339203901,1727320131476,-266.457235,0.000129,2]
[339203902,1727320131509,-151.0,0.000129,2]
[339203903,1727320131530,-266.457235,0.000129,2]
[339203904,1727320131552,-151.0,0.000129,2]
[339203905,1727320131572,-151.0,0.000129,2]
[339203906,1727320131594,-293.759558,0.000129,2]
[339203907,1727320131615,-151.0,0.000129,2]
[339203908,1727320131635,-159.05351,0.000129,2]
[339203909,1727320131655,-309.107969,0.000129,2]
[339203910,1727320131675,-309.107969,0.000129,2]
[339203911,1727320131694,-331.88499,0.000129,2]
[339203912,1727320131714,-331.88499,0.000129,2]
[339203913,1727320131734,-309.107969,0.000129,2]
[339203914,1727320131756,-309.107969,0.000129,2]
[339203915,1727320131775,-331.88499,0.000129,2]
[339203916,1727320131795,-331.88499,0.000129,2]
[339203917,1727320131815,-264.703642,0.000129,2]
[339203918,1727320131836,-264.703642,0.000129,2]
[339203919,1727320131856,-264.703642,0.000129,2]
[339203920,1727320131876,-264.703642,0.000129,2]
[339203921,1727320131896,-264.703642,0.000129,2]
[339203922,1727320131916,-264.703642,0.000129,2]
[339203923,1727320131937,-151.299827,0.000129,2]
[339203924,1727320131957,-904.876661,0.000129,2]
[339203925,1727320131978,-904.876661,0.000129,2]
[339203926,1727320131999,-904.876661,0.000129,2]
[339203927,1727320132018,-904.876661,0.000129,2]
[339203928,1727320132039,-360.695102,0.000129,2]
[339203929,1727320132058,-360.695102,0.000129,2]
[339203930,1727320132078,-360.695102,0.000129,2]
[339203931,1727320132098,-151.0,0.000129,2]
[339203932,1727320132118,-151.0,0.000129,2]
[339203933,1727320132138,-151.0,0.000129,2]
[339203934,1727320132158,-151.0,0.000129,2]
[339203935,1727320132178,-151.0,0.000129,2]
[339203936,1727320132198,-360.695102,0.000129,2]
[339203937,1727320132218,-360.695102,0.000129,2]
[339203938,1727320132239,-151.0,0.000129,2]
[339203939,1727320132259,-360.695102,0.000129,2]
[339203940,1727320132280,-151.0,0.000129,2]
[339203941,1727320132302,-166.165601,0.000129,2]
[339203942,1727320132322,-152.241736,0.000129,2]
[339203943,1727320132342,-151.0,0.000129,2]
[339203944,1727320132364,-152.50906,0.000129,2]
[339203945,1727320132385,-151.0,0.000129,2]
[339203946,1727320132405,-151.0,0.000129,2]
[339203947,1727320132426,-151.0,0.000129,2]
[339203948,1727320132451,-151.0,0.000129,2]
[339203949,1727320132474,-151.0,0.000129,2]
[339203950,1727320132494,-151.0,0.000129,2]
[339203951,1727320132514,-290.911224,0.000129,2]
[339203952,1727320132534,-290.911224,0.000129,2]
[339203953,1727320132557,-290.911224,0.000129,2]
[339203954,1727320132578,-290.911224,0.000129,2]
[339203955,1727320132726,-483.345397,0.000129,2]
[339203956,1727320132776,-483.345397,0.000129,2]
[339203957,1727320132796,-151.0,0.00012908,2]
[339203958,1727320132816,-151.0,0.00012908,2]
[339203959,1727320132836,-151.0,0.00012908,2]
[339203960,1727320132856,-151.0,0.00012908,2]
[339203961,1727320132877,-626.0,0.00012927,2]
[339203962,1727320132898,-626.0,0.00012955,2]
[339203963,1727320132918,-500.0,0.00012973,2]
[339203964,1727320132940,-500.51364823,0.00012973,2]
[339203965,1727320132962,-500.0,0.00012973,2]
[339203966,1727320132986,-626.0,0.00012982,2]
[339203967,1727320133006,-151.0,0.00012991,2]
[339203968,1727320133028,-151.0,0.00012991,2]
[339203969,1727320133050,-174.455682,0.00012991,2]
[339203970,1727320133071,-234.73176,0.00012991,2]
[339203971,1727320133091,-151.0,0.00012991,2]
[339203972,1727320133113,-166.610481,0.00012991,2]
[339203973,1727320133138,-166.610481,0.00012991,2]
[339203974,1727320133162,-151.0,0.00012991,2]
[339203975,1727320133185,-151.0,0.00012991,2]
[339203976,1727320133206,-151.0,0.00012991,2]
[339203977,1727320133228,-151.0,0.00012991,2]
[339203978,1727320133250,-151.0,0.00012991,2]
[339203979,1727320133272,-193.285647,0.00012991,2]
[339203980,1727320133294,-151.0,0.00012991,2]
[339203981,1727320133318,-169.770787,0.00012991,2]